[Event "*** Titled Tuesday Blitz"]
[Site "Chess.com"]
[Date "2020.05.05"]
[Round "5"]
[White "JoachimMouhamad"]
[Black "FMOlexandrProhorov"]
[Result "1-0"]
[WhiteElo "2297"]
[BlackElo "2056"]
[TimeControl "180+1"]
[EndTime "10:55:02 PDT"]
[Termination "JoachimMouhamad won by checkmate"]

1. e4 {[%clk 0:03:00.9]} 1... c5 {[%clk 0:02:57.6]} 2. Nf3 {[%clk 0:03:00.4]}
2... e6 {[%clk 0:02:57.2]} 3. d4 {[%clk 0:03:00.2]} 3... cxd4 {[%clk 0:02:57.6]}
4. Nxd4 {[%clk 0:03:00.6]} 4... Qb6 {[%clk 0:02:58.5]} 5. Nb3 {[%clk 0:02:54.6]}
5... Nf6 {[%clk 0:02:58.3]} 6. Nc3 {[%clk 0:02:52.3]} 6... Bb4 {[%clk
0:02:56.4]} 7. Bd3 {[%clk 0:02:49.3]} 7... d5 {[%clk 0:02:55.4]} 8. exd5 {[%clk
0:02:43.4]} 8... Nxd5 {[%clk 0:02:55.1]} 9. O-O {[%clk 0:02:35.3]} 9... Nxc3
{[%clk 0:02:47]} 10. bxc3 {[%clk 0:02:33.4]} 10... Bxc3 {[%clk 0:02:45.1]} 11.
Ba3 {[%clk 0:02:32.1]} 11... Bxa1 {[%clk 0:02:37.3]} 12. Qxa1 {[%clk 0:02:31.2]}
12... f6 {[%clk 0:02:35.8]} 13. Re1 {[%clk 0:02:13.1]} 13... Kf7 {[%clk
0:02:34.2]} 14. Qd1 {[%clk 0:02:04]} 14... Nc6 {[%clk 0:02:15.7]} 15. Qh5+
{[%clk 0:01:56]} 15... g6 {[%clk 0:02:15.8]} 16. Qh4 {[%clk 0:01:46.1]} 16...
Ne5 {[%clk 0:02:05.4]} 17. Rxe5 {[%clk 0:01:35.3]} 17... Bd7 {[%clk 0:01:54.2]}
18. Re3 {[%clk 0:01:23]} 18... Rae8 {[%clk 0:01:49.9]} 19. Rf3 {[%clk
0:01:17.9]} 19... e5 {[%clk 0:01:50.1]} 20. Bc4+ {[%clk 0:01:13.8]} 20... Kg7
{[%clk 0:01:50.1]} 21. Bc5 {[%clk 0:01:03.7]} 21... Qd8 {[%clk 0:01:44.6]} 22.
Rd3 {[%clk 0:00:47]} 22... Qc8 {[%clk 0:01:37.1]} 23. Nd2 {[%clk 0:00:37.6]}
23... Bf5 {[%clk 0:01:29.5]} 24. Be3 {[%clk 0:00:26.7]} 24... Bxd3 {[%clk
0:01:28.3]} 25. Qh6# {[%clk 0:00:24.4]} 1-0

[Event "*** Titled Tuesday Blitz"]
[Site "Chess.com"]
[Date "2020.05.05"]
[Round "5"]
[White "Gahan-MG"]
[Black "Kezin_Roman"]
[Result "0-1"]
[WhiteElo "2599"]
[BlackElo "2797"]
[TimeControl "180+1"]
[EndTime "10:55:05 PDT"]
[Termination "Kezin_Roman won by resignation"]

1. e4 {[%clk 0:03:00.9]} 1... c5 {[%clk 0:02:59.6]} 2. Nf3 {[%clk 0:03:00.8]}
2... e6 {[%clk 0:03:00.1]} 3. c3 {[%clk 0:03:00.8]} 3... d5 {[%clk 0:02:59.9]}
4. exd5 {[%clk 0:03:00.8]} 4... exd5 {[%clk 0:03:00.8]} 5. d4 {[%clk 0:03:01.7]}
5... Nc6 {[%clk 0:03:00.5]} 6. Bb5 {[%clk 0:02:59.3]} 6... Bd6 {[%clk
0:03:00.4]} 7. dxc5 {[%clk 0:02:58.8]} 7... Bxc5 {[%clk 0:03:00]} 8. O-O {[%clk
0:02:59]} 8... Nf6 {[%clk 0:03:00.4]} 9. Re1+ {[%clk 0:02:57.7]} 9... Be6 {[%clk
0:03:00.7]} 10. Be3 {[%clk 0:02:53.2]} 10... Bxe3 {[%clk 0:03:00]} 11. Rxe3
{[%clk 0:02:54.1]} 11... O-O {[%clk 0:03:00.1]} 12. Nd4 {[%clk 0:02:53.1]} 12...
Qb6 {[%clk 0:02:59.1]} 13. Bxc6 {[%clk 0:02:32.9]} 13... bxc6 {[%clk 0:02:51.5]}
14. Qb3 {[%clk 0:02:26.5]} 14... Qc7 {[%clk 0:02:48.6]} 15. Nd2 {[%clk
0:02:22.5]} 15... Ng4 {[%clk 0:02:41.7]} 16. Rg3 {[%clk 0:02:17.1]} 16... Qf4
{[%clk 0:02:30.5]} 17. N2f3 {[%clk 0:02:08.3]} 17... c5 {[%clk 0:02:30.4]} 18.
Ne2 {[%clk 0:01:47.8]} 18... Qd6 {[%clk 0:02:20.2]} 19. Qc2 {[%clk 0:01:41.4]}
19... Nf6 {[%clk 0:02:18.8]} 20. Ng5 {[%clk 0:01:28.6]} 20... Rae8 {[%clk
0:02:13.8]} 21. Rd1 {[%clk 0:01:17.7]} 21... h6 {[%clk 0:02:05.5]} 22. Nxe6
{[%clk 0:01:16.5]} 22... Rxe6 {[%clk 0:01:59.8]} 23. Nc1 {[%clk 0:00:51.3]}
23... Rfe8 {[%clk 0:01:58.2]} 24. Qd2 {[%clk 0:00:51.1]} 24... Ne4 {[%clk
0:01:53.7]} 25. Qxd5 {[%clk 0:00:50.6]} 25... Nxc3 {[%clk 0:01:27.6]} 0-1

[Event "*** Titled Tuesday Blitz"]
[Site "Chess.com"]
[Date "2020.05.05"]
[Round "5"]
[White "aNaartjieZA"]
[Black "VojtechPlat"]
[Result "0-1"]
[WhiteElo "2598"]
[BlackElo "2790"]
[TimeControl "180+1"]
[EndTime "10:55:10 PDT"]
[Termination "VojtechPlat won by resignation"]

1. e4 {[%clk 0:03:00.9]} 1... c5 {[%clk 0:02:59.6]} 2. Nf3 {[%clk 0:03:00.8]}
2... Nc6 {[%clk 0:02:59.7]} 3. g3 {[%clk 0:03:00.4]} 3... g6 {[%clk 0:02:59.2]}
4. Bg2 {[%clk 0:03:00.3]} 4... Bg7 {[%clk 0:02:59.5]} 5. O-O {[%clk 0:03:00.7]}
5... d6 {[%clk 0:02:59.9]} 6. Re1 {[%clk 0:03:00.5]} 6... Nf6 {[%clk 0:03:00]}
7. c3 {[%clk 0:03:00.7]} 7... O-O {[%clk 0:02:59.7]} 8. h3 {[%clk 0:03:00.9]}
8... e5 {[%clk 0:02:59.1]} 9. d3 {[%clk 0:03:01]} 9... Rb8 {[%clk 0:02:58.5]}
10. a4 {[%clk 0:03:00.9]} 10... a6 {[%clk 0:02:58.9]} 11. Na3 {[%clk 0:03:00.6]}
11... b5 {[%clk 0:02:58.9]} 12. axb5 {[%clk 0:03:00.9]} 12... axb5 {[%clk
0:02:59]} 13. Nc2 {[%clk 0:03:00.1]} 13... h6 {[%clk 0:02:57.3]} 14. d4 {[%clk
0:02:59.8]} 14... cxd4 {[%clk 0:02:56.8]} 15. cxd4 {[%clk 0:02:59.9]} 15... exd4
{[%clk 0:02:56.4]} 16. Nfxd4 {[%clk 0:02:59.4]} 16... Ne5 {[%clk 0:02:53.7]} 17.
Nb4 {[%clk 0:02:57.5]} 17... Bd7 {[%clk 0:02:49.4]} 18. f4 {[%clk 0:02:57.1]}
18... Nc4 {[%clk 0:02:49.2]} 19. b3 {[%clk 0:02:55.5]} 19... Na5 {[%clk
0:02:44.6]} 20. Kh2 {[%clk 0:02:43.9]} 20... h5 {[%clk 0:02:44.4]} 21. Be3
{[%clk 0:02:31.5]} 21... Re8 {[%clk 0:02:39.5]} 22. Bf2 {[%clk 0:02:30.5]} 22...
Rc8 {[%clk 0:02:27.1]} 23. Qd2 {[%clk 0:02:19.2]} 23... h4 {[%clk 0:02:24.3]}
24. g4 {[%clk 0:02:17.2]} 24... Bxg4 {[%clk 0:02:23]} 25. hxg4 {[%clk
0:02:14.1]} 25... Nxg4+ {[%clk 0:02:22.8]} 26. Kg1 {[%clk 0:02:13]} 26... Nxf2
{[%clk 0:02:22.9]} 27. Qxf2 {[%clk 0:02:11.4]} 27... Bxd4 {[%clk 0:02:22.5]} 28.
Qxd4 {[%clk 0:02:11.2]} 28... Nxb3 {[%clk 0:02:22.7]} 29. Qb2 {[%clk 0:02:06]}
29... Nxa1 {[%clk 0:02:21.6]} 30. Rxa1 {[%clk 0:02:05.7]} 30... h3 {[%clk
0:02:16.7]} 31. Nd5 {[%clk 0:01:35]} 31... Qh4 {[%clk 0:02:04.6]} 32. Nf6+
{[%clk 0:01:29.5]} 32... Kf8 {[%clk 0:02:04.2]} 33. Nd7+ {[%clk 0:01:17.3]}
33... Ke7 {[%clk 0:02:02.5]} 34. Ra7 {[%clk 0:01:16]} 34... Kd8 {[%clk
0:01:31.8]} 35. Nf6 {[%clk 0:01:01]} 35... h2+ {[%clk 0:01:24.7]} 36. Kh1 {[%clk
0:00:58.5]} 36... Qe1+ {[%clk 0:01:24.7]} 0-1

[Event "*** Titled Tuesday Blitz"]
[Site "Chess.com"]
[Date "2020.05.05"]
[Round "5"]
[White "Oglob71"]
[Black "BabyBoss31"]
[Result "1-0"]
[WhiteElo "2478"]
[BlackElo "2288"]
[TimeControl "180+1"]
[EndTime "10:55:13 PDT"]
[Termination "Oglob71 won by resignation"]

1. d4 {[%clk 0:02:59.6]} 1... d5 {[%clk 0:03:00]} 2. Nf3 {[%clk 0:03:00]} 2...
Nf6 {[%clk 0:02:58.9]} 3. c4 {[%clk 0:03:00.5]} 3... c6 {[%clk 0:02:52.8]} 4. e3
{[%clk 0:03:00]} 4... Bf5 {[%clk 0:02:44.7]} 5. Nc3 {[%clk 0:02:57.7]} 5... e6
{[%clk 0:02:33.1]} 6. Nh4 {[%clk 0:02:57.5]} 6... Bg6 {[%clk 0:02:32.9]} 7. Be2
{[%clk 0:02:56.4]} 7... Nbd7 {[%clk 0:02:28.3]} 8. O-O {[%clk 0:02:55.9]} 8...
Bd6 {[%clk 0:02:24.2]} 9. g3 {[%clk 0:02:55.4]} 9... O-O {[%clk 0:02:21]} 10.
Nxg6 {[%clk 0:02:53.2]} 10... hxg6 {[%clk 0:02:21.9]} 11. b3 {[%clk 0:02:48.9]}
11... Qe7 {[%clk 0:02:17.8]} 12. Bf3 {[%clk 0:02:47.4]} 12... Rac8 {[%clk
0:02:07.4]} 13. Bg2 {[%clk 0:02:43.2]} 13... Ba3 {[%clk 0:01:57.6]} 14. Bd2
{[%clk 0:02:42.4]} 14... Rfd8 {[%clk 0:01:52.6]} 15. f4 {[%clk 0:02:36.2]} 15...
c5 {[%clk 0:01:22.9]} 16. Nb5 {[%clk 0:02:20.1]} 16... cxd4 {[%clk 0:01:18.4]}
17. exd4 {[%clk 0:02:06.4]} 17... a6 {[%clk 0:01:07.6]} 18. Nxa3 {[%clk
0:02:04.2]} 18... Qxa3 {[%clk 0:01:06.4]} 19. c5 {[%clk 0:02:04.6]} 19... b6
{[%clk 0:00:58.9]} 20. b4 {[%clk 0:02:01.5]} 20... a5 {[%clk 0:00:55.5]} 21. Rf3
{[%clk 0:02:01.1]} 21... Qb2 {[%clk 0:00:49.8]} 22. Bc3 {[%clk 0:02:01.2]} 22...
Qa3 {[%clk 0:00:43.9]} 23. bxa5 {[%clk 0:01:58.7]} 23... bxc5 {[%clk 0:00:37.9]}
24. Be1 {[%clk 0:01:55]} 24... Qb2 {[%clk 0:00:34.4]} 25. Rb3 {[%clk 0:01:51.3]}
25... Qxd4+ {[%clk 0:00:31.4]} 26. Qxd4 {[%clk 0:01:51.7]} 26... cxd4 {[%clk
0:00:32.3]} 27. Bf2 {[%clk 0:01:52]} 27... Nc5 {[%clk 0:00:31.8]} 28. Rb5 {[%clk
0:01:51.6]} 28... Nce4 {[%clk 0:00:17]} 29. Bxd4 {[%clk 0:01:50.7]} 29... Rc4
{[%clk 0:00:16.4]} 30. Bb6 {[%clk 0:01:45.6]} 30... Rc2 {[%clk 0:00:14.2]} 31.
Bxd8 {[%clk 0:01:44]} 1-0

[Event "*** Titled Tuesday Blitz"]
[Site "Chess.com"]
[Date "2020.05.05"]
[Round "5"]
[White "Zq1"]
[Black "Sjakkerntobi"]
[Result "1-0"]
[WhiteElo "2554"]
[BlackElo "2247"]
[TimeControl "180+1"]
[EndTime "10:55:14 PDT"]
[Termination "Zq1 won by resignation"]

1. d4 {[%clk 0:03:00.9]} 1... Nf6 {[%clk 0:02:59.2]} 2. c4 {[%clk 0:03:00.8]}
2... e6 {[%clk 0:02:58.9]} 3. Nc3 {[%clk 0:03:00.3]} 3... d5 {[%clk 0:02:59]} 4.
Nf3 {[%clk 0:02:59.1]} 4... Be7 {[%clk 0:02:59]} 5. g3 {[%clk 0:02:59]} 5... O-O
{[%clk 0:02:56.8]} 6. Bg2 {[%clk 0:02:59]} 6... dxc4 {[%clk 0:02:56.8]} 7. Ne5
{[%clk 0:02:58.7]} 7... Nbd7 {[%clk 0:02:55.8]} 8. Nxc4 {[%clk 0:02:57.3]} 8...
c5 {[%clk 0:02:55.2]} 9. O-O {[%clk 0:02:50.6]} 9... cxd4 {[%clk 0:02:38.7]} 10.
Qxd4 {[%clk 0:02:48.5]} 10... Nc5 {[%clk 0:02:35.8]} 11. Be3 {[%clk 0:02:41.3]}
11... Qxd4 {[%clk 0:02:08.4]} 12. Bxd4 {[%clk 0:02:41.1]} 12... Bd7 {[%clk
0:02:09.3]} 13. Na5 {[%clk 0:02:27]} 13... Rab8 {[%clk 0:01:54.5]} 14. Be5
{[%clk 0:02:22.4]} 14... Rbc8 {[%clk 0:01:52.5]} 15. Nxb7 {[%clk 0:02:21]} 15...
Bc6 {[%clk 0:01:47.8]} 16. Nd6 {[%clk 0:02:04]} 16... Bxd6 {[%clk 0:01:42.6]}
17. Bxd6 {[%clk 0:02:03.4]} 17... Rfd8 {[%clk 0:01:43.5]} 18. Bxc5 {[%clk
0:01:42.2]} 18... Bxg2 {[%clk 0:01:39.6]} 19. Kxg2 {[%clk 0:01:42.2]} 19... Rxc5
{[%clk 0:01:40.5]} 20. Rfd1 {[%clk 0:01:41.6]} 20... Rb8 {[%clk 0:01:40.7]} 21.
Rd2 {[%clk 0:01:40.9]} 21... Kf8 {[%clk 0:01:39.5]} 22. Rad1 {[%clk 0:01:38.7]}
22... Ke7 {[%clk 0:01:38.9]} 23. f3 {[%clk 0:01:33.3]} 23... Rc7 {[%clk
0:01:29.2]} 24. Kf2 {[%clk 0:01:29.6]} 24... Rcb7 {[%clk 0:01:28.7]} 25. b3
{[%clk 0:01:28.3]} 25... Rc7 {[%clk 0:01:28.4]} 26. Rd3 {[%clk 0:01:24.7]} 26...
Rbc8 {[%clk 0:01:27.8]} 27. Nb5 {[%clk 0:01:23.6]} 27... Rc2 {[%clk 0:01:21.6]}
28. R1d2 {[%clk 0:01:08.2]} 28... a6 {[%clk 0:01:06.3]} 29. Nd6 {[%clk
0:01:03.1]} 29... Rxd2 {[%clk 0:00:49.9]} 30. Nxc8+ {[%clk 0:01:02.4]} 1-0

[Event "*** Titled Tuesday Blitz"]
[Site "Chess.com"]
[Date "2020.05.05"]
[Round "5"]
[White "zmeeed67"]
[Black "tteshan"]
[Result "1-0"]
[WhiteElo "2387"]
[BlackElo "2206"]
[TimeControl "180+1"]
[EndTime "10:55:15 PDT"]
[Termination "zmeeed67 won on time"]

1. d4 {[%clk 0:03:00.9]} 1... Nf6 {[%clk 0:02:59.2]} 2. c4 {[%clk 0:03:01.4]}
2... e6 {[%clk 0:02:57.7]} 3. Nc3 {[%clk 0:03:01.6]} 3... Bb4 {[%clk 0:02:55.4]}
4. f3 {[%clk 0:03:01.9]} 4... d5 {[%clk 0:02:47.8]} 5. a3 {[%clk 0:03:02.1]}
5... Bxc3+ {[%clk 0:02:42.6]} 6. bxc3 {[%clk 0:03:03]} 6... O-O {[%clk
0:02:37.6]} 7. cxd5 {[%clk 0:03:02.6]} 7... exd5 {[%clk 0:02:31.7]} 8. e3 {[%clk
0:03:02.8]} 8... Re8 {[%clk 0:02:30.9]} 9. Bd3 {[%clk 0:03:03.1]} 9... c5 {[%clk
0:02:15.8]} 10. Ne2 {[%clk 0:03:03.4]} 10... Nc6 {[%clk 0:02:12.3]} 11. O-O
{[%clk 0:03:03.8]} 11... Qc7 {[%clk 0:01:47.5]} 12. Ng3 {[%clk 0:03:03.9]} 12...
Be6 {[%clk 0:01:38]} 13. Ra2 {[%clk 0:03:04.1]} 13... a6 {[%clk 0:01:34]} 14.
Bb1 {[%clk 0:03:03.8]} 14... b5 {[%clk 0:01:30.2]} 15. Rd2 {[%clk 0:02:47.7]}
15... Na5 {[%clk 0:01:26.3]} 16. e4 {[%clk 0:02:44.9]} 16... dxe4 {[%clk
0:01:11.3]} 17. fxe4 {[%clk 0:02:43.7]} 17... Nc4 {[%clk 0:01:10.4]} 18. Rdf2
{[%clk 0:02:33.6]} 18... Bg4 {[%clk 0:00:56.3]} 19. Qc2 {[%clk 0:02:23.1]} 19...
cxd4 {[%clk 0:00:55.1]} 20. cxd4 {[%clk 0:02:24]} 20... Rad8 {[%clk 0:00:41.6]}
21. e5 {[%clk 0:02:20.9]} 21... Rxd4 {[%clk 0:00:12.8]} 22. exf6 {[%clk
0:02:19.1]} 22... g6 {[%clk 0:00:09.4]} 23. Bb2 {[%clk 0:02:08.5]} 23... Rd5
{[%clk 0:00:06.2]} 24. Qc1 {[%clk 0:02:07.9]} 24... Qd6 {[%clk 0:00:05.2]} 25.
Ba2 {[%clk 0:01:50.4]} 25... Rc8 {[%clk 0:00:04.4]} 26. Bxc4 {[%clk 0:01:47.9]}
26... Rxc4 {[%clk 0:00:02.9]} 27. Qh6 {[%clk 0:01:48.8]} 27... Qf8 {[%clk
0:00:01.8]} 28. Qe3 {[%clk 0:01:46.5]} 1-0

[Event "*** Titled Tuesday Blitz"]
[Site "Chess.com"]
[Date "2020.05.05"]
[Round "5"]
[White "Efremov_Vlad"]
[Black "keepitcool9499"]
[Result "0-1"]
[WhiteElo "2134"]
[BlackElo "2461"]
[TimeControl "180+1"]
[EndTime "10:55:18 PDT"]
[Termination "keepitcool9499 won by resignation"]

1. d4 {[%clk 0:03:00.9]} 1... Nf6 {[%clk 0:02:55.2]} 2. c4 {[%clk 0:03:00.9]}
2... e6 {[%clk 0:02:48.4]} 3. Nf3 {[%clk 0:03:00.3]} 3... d5 {[%clk 0:02:48]} 4.
Nc3 {[%clk 0:02:59.8]} 4... Be7 {[%clk 0:02:39.4]} 5. Bf4 {[%clk 0:02:58.7]}
5... O-O {[%clk 0:02:38.5]} 6. e3 {[%clk 0:02:58.6]} 6... c6 {[%clk 0:02:34.5]}
7. c5 {[%clk 0:02:45.5]} 7... b6 {[%clk 0:02:31.8]} 8. b4 {[%clk 0:02:45.2]}
8... a5 {[%clk 0:02:29]} 9. a3 {[%clk 0:02:45.4]} 9... Nbd7 {[%clk 0:02:27.6]}
10. Be2 {[%clk 0:02:42.2]} 10... Ba6 {[%clk 0:02:22.9]} 11. O-O {[%clk 0:02:42]}
11... Bxe2 {[%clk 0:02:19.1]} 12. Qxe2 {[%clk 0:02:40.5]} 12... Nh5 {[%clk
0:02:17.2]} 13. Rfb1 {[%clk 0:02:28.1]} 13... Nxf4 {[%clk 0:02:13.7]} 14. exf4
{[%clk 0:02:27]} 14... Bf6 {[%clk 0:02:13.6]} 15. Ne5 {[%clk 0:02:22.7]} 15...
Bxe5 {[%clk 0:02:13.9]} 16. fxe5 {[%clk 0:02:21.9]} 16... f6 {[%clk 0:02:13.7]}
17. b5 {[%clk 0:02:07.9]} 17... Rc8 {[%clk 0:02:03.1]} 18. bxc6 {[%clk
0:01:23.7]} 18... Rxc6 {[%clk 0:01:59.4]} 19. Qb5 {[%clk 0:01:17.9]} 19... Rc8
{[%clk 0:01:53]} 20. c6 {[%clk 0:01:04.7]} 20... Nb8 {[%clk 0:01:49.8]} 21. Qxb6
{[%clk 0:01:03.2]} 21... Qxb6 {[%clk 0:01:47.3]} 22. Rxb6 {[%clk 0:01:02.4]}
22... Rxc6 {[%clk 0:01:47.5]} 23. Rxc6 {[%clk 0:01:01.1]} 23... Nxc6 {[%clk
0:01:48.4]} 24. exf6 {[%clk 0:00:57.8]} 24... Nxd4 {[%clk 0:01:46.6]} 25. fxg7
{[%clk 0:00:56.3]} 25... Rc8 {[%clk 0:01:45.9]} 26. Na4 {[%clk 0:00:36.9]} 26...
Kxg7 {[%clk 0:01:40.4]} 27. Nb6 {[%clk 0:00:33.3]} 27... Rc3 {[%clk 0:01:36.2]}
28. Nd7 {[%clk 0:00:20.2]} 28... Nc2 {[%clk 0:01:33.3]} 29. Re1 {[%clk
0:00:19.7]} 29... Nxe1 {[%clk 0:01:24.8]} 0-1

[Event "*** Titled Tuesday Blitz"]
[Site "Chess.com"]
[Date "2020.05.05"]
[Round "5"]
[White "madalin18"]
[Black "QueenOfTactics90"]
[Result "1-0"]
[WhiteElo "2150"]
[BlackElo "1988"]
[TimeControl "180+1"]
[EndTime "10:55:18 PDT"]
[Termination "madalin18 won on time"]

1. e4 {[%clk 0:03:00.9]} 1... c5 {[%clk 0:02:59.8]} 2. Nf3 {[%clk 0:03:00.8]}
2... Nc6 {[%clk 0:02:59.7]} 3. d4 {[%clk 0:03:01.3]} 3... cxd4 {[%clk
0:02:59.5]} 4. Nxd4 {[%clk 0:03:01.7]} 4... g6 {[%clk 0:02:57.3]} 5. Nc3 {[%clk
0:02:57.9]} 5... Bg7 {[%clk 0:02:56.3]} 6. Be3 {[%clk 0:02:57.3]} 6... Nf6
{[%clk 0:02:55.9]} 7. Nxc6 {[%clk 0:02:54.4]} 7... dxc6 {[%clk 0:02:41.1]} 8.
Qxd8+ {[%clk 0:02:50.4]} 8... Kxd8 {[%clk 0:02:42]} 9. O-O-O+ {[%clk 0:02:50]}
9... Bd7 {[%clk 0:02:18.4]} 10. f3 {[%clk 0:02:46.5]} 10... e5 {[%clk
0:02:16.9]} 11. Bc4 {[%clk 0:02:42.7]} 11... Ke8 {[%clk 0:01:58.7]} 12. Rd3
{[%clk 0:02:39.3]} 12... b6 {[%clk 0:01:50.5]} 13. Rhd1 {[%clk 0:02:38.4]} 13...
Ke7 {[%clk 0:01:45.1]} 14. Bg5 {[%clk 0:02:37.6]} 14... Rad8 {[%clk 0:01:44.4]}
15. Bxf7 {[%clk 0:02:14.3]} 15... h6 {[%clk 0:01:35.4]} 16. Bxf6+ {[%clk
0:02:11.5]} 16... Bxf6 {[%clk 0:01:32.3]} 17. Bxg6 {[%clk 0:02:11.1]} 17... Rhg8
{[%clk 0:01:28.7]} 18. Bf5 {[%clk 0:02:06.5]} 18... Bxf5 {[%clk 0:01:24]} 19.
Rxd8 {[%clk 0:02:05.5]} 19... Rxd8 {[%clk 0:01:24]} 20. Rxd8 {[%clk 0:02:05.1]}
20... Kxd8 {[%clk 0:01:24.9]} 21. exf5 {[%clk 0:02:05]} 21... Ke7 {[%clk
0:01:19]} 22. Ne4 {[%clk 0:02:04.6]} 22... Bh8 {[%clk 0:01:13.4]} 23. f6+ {[%clk
0:01:59.8]} 23... Ke6 {[%clk 0:01:08.3]} 24. Kd2 {[%clk 0:01:59.3]} 24... Bxf6
{[%clk 0:01:03.6]} 25. Nxf6 {[%clk 0:01:58.7]} 25... Kxf6 {[%clk 0:00:58.9]} 26.
Ke3 {[%clk 0:01:58.5]} 26... Kf5 {[%clk 0:00:54.3]} 27. g4+ {[%clk 0:01:58.1]}
27... Ke6 {[%clk 0:00:46.2]} 28. Ke4 {[%clk 0:01:58]} 1-0

[Event "*** Titled Tuesday Blitz"]
[Site "Chess.com"]
[Date "2020.05.05"]
[Round "5"]
[White "MihailNik"]
[Black "Problematique_99"]
[Result "1-0"]
[WhiteElo "2726"]
[BlackElo "2551"]
[TimeControl "180+1"]
[EndTime "10:55:19 PDT"]
[Termination "MihailNik won by resignation"]

1. c4 {[%clk 0:03:00.9]} 1... Nf6 {[%clk 0:02:58.1]} 2. g3 {[%clk 0:03:00.8]}
2... g6 {[%clk 0:02:59]} 3. Bg2 {[%clk 0:03:01.2]} 3... Bg7 {[%clk 0:02:59.9]}
4. Nc3 {[%clk 0:03:01.8]} 4... O-O {[%clk 0:03:00.8]} 5. e4 {[%clk 0:03:02.2]}
5... d6 {[%clk 0:03:01.1]} 6. Nge2 {[%clk 0:03:02.7]} 6... e5 {[%clk 0:03:00.6]}
7. O-O {[%clk 0:03:03.2]} 7... a5 {[%clk 0:02:53.5]} 8. d3 {[%clk 0:03:02.6]}
8... Na6 {[%clk 0:02:53.6]} 9. h3 {[%clk 0:03:03]} 9... Nc5 {[%clk 0:02:52]} 10.
Be3 {[%clk 0:02:58.6]} 10... Re8 {[%clk 0:02:47.7]} 11. Qd2 {[%clk 0:02:55.9]}
11... c6 {[%clk 0:02:42.5]} 12. f4 {[%clk 0:02:55.1]} 12... exf4 {[%clk
0:02:41.6]} 13. gxf4 {[%clk 0:02:54.5]} 13... Nh5 {[%clk 0:02:40]} 14. f5 {[%clk
0:02:43.2]} 14... a4 {[%clk 0:02:20.4]} 15. Bg5 {[%clk 0:02:28.2]} 15... Qb6
{[%clk 0:02:07.6]} 16. d4 {[%clk 0:02:23.3]} 16... Nd7 {[%clk 0:01:58.3]} 17.
Kh1 {[%clk 0:02:01.7]} 17... Qb4 {[%clk 0:01:51.8]} 18. Bf3 {[%clk 0:01:57.4]}
18... Ndf6 {[%clk 0:01:40.8]} 19. Rac1 {[%clk 0:01:26.1]} 19... Qxc4 {[%clk
0:01:21.6]} 20. Nd5 {[%clk 0:01:17.9]} 20... cxd5 {[%clk 0:01:21.2]} 21. Rxc4
{[%clk 0:01:17.2]} 21... dxc4 {[%clk 0:01:22.1]} 22. e5 {[%clk 0:01:09.9]} 22...
dxe5 {[%clk 0:01:19.1]} 23. dxe5 {[%clk 0:01:10.8]} 23... Rxe5 {[%clk
0:01:10.4]} 24. Bxh5 {[%clk 0:01:09.9]} 24... gxh5 {[%clk 0:00:59.9]} 25. Bxf6
{[%clk 0:00:54]} 25... Bxf6 {[%clk 0:00:59.7]} 26. Rg1+ {[%clk 0:00:54.4]} 26...
Kf8 {[%clk 0:00:56.4]} 27. Qd6+ {[%clk 0:00:52.2]} 1-0

[Event "*** Titled Tuesday Blitz"]
[Site "Chess.com"]
[Date "2020.05.05"]
[Round "5"]
[White "ninullia"]
[Black "francyIM"]
[Result "1-0"]
[WhiteElo "2456"]
[BlackElo "2634"]
[TimeControl "180+1"]
[EndTime "10:55:24 PDT"]
[Termination "ninullia won by resignation"]

1. d4 {[%clk 0:03:00.9]} 1... Nf6 {[%clk 0:02:59.6]} 2. c4 {[%clk 0:03:00.6]}
2... e6 {[%clk 0:02:58.8]} 3. Nf3 {[%clk 0:03:00.6]} 3... b6 {[%clk 0:02:53.5]}
4. g3 {[%clk 0:03:00]} 4... Ba6 {[%clk 0:02:47.7]} 5. b3 {[%clk 0:02:59.7]} 5...
Bb4+ {[%clk 0:02:40.2]} 6. Bd2 {[%clk 0:02:59.5]} 6... Be7 {[%clk 0:02:41.1]} 7.
Nc3 {[%clk 0:02:58]} 7... d5 {[%clk 0:02:40.7]} 8. Bg2 {[%clk 0:02:49.7]} 8...
c6 {[%clk 0:02:39.9]} 9. cxd5 {[%clk 0:02:42.3]} 9... cxd5 {[%clk 0:02:38.6]}
10. O-O {[%clk 0:02:42.9]} 10... O-O {[%clk 0:02:38.5]} 11. Ne5 {[%clk
0:02:41.5]} 11... Bb7 {[%clk 0:02:38.4]} 12. Rc1 {[%clk 0:02:20.1]} 12... a6
{[%clk 0:02:37.5]} 13. Na4 {[%clk 0:02:17.2]} 13... Nfd7 {[%clk 0:02:35.4]} 14.
f4 {[%clk 0:02:10.3]} 14... f5 {[%clk 0:02:31.4]} 15. Qc2 {[%clk 0:01:39.6]}
15... Nxe5 {[%clk 0:02:28.6]} 16. fxe5 {[%clk 0:01:39.4]} 16... Nc6 {[%clk
0:02:26.7]} 17. e3 {[%clk 0:01:38.3]} 17... Ba3 {[%clk 0:02:25.9]} 18. Rb1
{[%clk 0:01:34.1]} 18... Rc8 {[%clk 0:02:25.7]} 19. Qd3 {[%clk 0:01:34.5]} 19...
b5 {[%clk 0:02:20.8]} 20. Nc3 {[%clk 0:01:29.1]} 20... Qb6 {[%clk 0:02:14]} 21.
Ne2 {[%clk 0:01:26.6]} 21... Bb4 {[%clk 0:02:12.3]} 22. Rbc1 {[%clk 0:01:23.2]}
22... a5 {[%clk 0:02:11.8]} 23. Nf4 {[%clk 0:01:17.6]} 23... Rfe8 {[%clk
0:02:06.4]} 24. Nxe6 {[%clk 0:01:04.8]} 24... Rxe6 {[%clk 0:02:04.7]} 25. Bxd5
{[%clk 0:01:03.2]} 25... Ne7 {[%clk 0:01:57.3]} 26. Rxc8+ {[%clk 0:00:39.3]}
26... Nxc8 {[%clk 0:01:47.3]} 27. Qxf5 {[%clk 0:00:33.2]} 1-0

[Event "*** Titled Tuesday Blitz"]
[Site "Chess.com"]
[Date "2020.05.05"]
[Round "5"]
[White "AVolodin"]
[Black "dianosky"]
[Result "1-0"]
[WhiteElo "2664"]
[BlackElo "2424"]
[TimeControl "180+1"]
[EndTime "10:55:24 PDT"]
[Termination "AVolodin won by resignation"]

1. d4 {[%clk 0:03:00.9]} 1... d5 {[%clk 0:02:59.9]} 2. c4 {[%clk 0:02:59.7]}
2... dxc4 {[%clk 0:03:00.4]} 3. Nf3 {[%clk 0:02:58.4]} 3... a6 {[%clk
0:03:00.6]} 4. a4 {[%clk 0:02:57.3]} 4... Nc6 {[%clk 0:03:00.9]} 5. e3 {[%clk
0:02:57.8]} 5... Na5 {[%clk 0:03:00.9]} 6. Bd2 {[%clk 0:02:55.6]} 6... Nb3
{[%clk 0:03:01]} 7. Ra2 {[%clk 0:02:56.1]} 7... Be6 {[%clk 0:02:58.3]} 8. Qc2
{[%clk 0:02:54]} 8... b5 {[%clk 0:02:55.4]} 9. Ng5 {[%clk 0:02:54.1]} 9... Bd7
{[%clk 0:02:50]} 10. Be2 {[%clk 0:02:50.1]} 10... c6 {[%clk 0:02:47.1]} 11. O-O
{[%clk 0:02:47.8]} 11... e6 {[%clk 0:02:46]} 12. f4 {[%clk 0:02:47.9]} 12... Nf6
{[%clk 0:02:37.6]} 13. Be1 {[%clk 0:02:48]} 13... h6 {[%clk 0:02:37.6]} 14. Nf3
{[%clk 0:02:47.5]} 14... c5 {[%clk 0:02:37.2]} 15. Nbd2 {[%clk 0:02:47.6]} 15...
cxd4 {[%clk 0:02:34.1]} 16. Nxb3 {[%clk 0:02:46.3]} 16... cxb3 {[%clk
0:02:20.8]} 17. Qxb3 {[%clk 0:02:47.2]} 17... bxa4 {[%clk 0:02:17.7]} 18. Rxa4
{[%clk 0:02:24.5]} 18... Bxa4 {[%clk 0:02:08.5]} 19. Qxa4+ {[%clk 0:02:25.4]}
19... Qd7 {[%clk 0:02:08.9]} 20. Qa5 {[%clk 0:02:12.2]} 20... Bd6 {[%clk
0:01:42.6]} 21. Ne5 {[%clk 0:01:19.9]} 21... Qc7 {[%clk 0:01:27.9]} 22. Qa4+
{[%clk 0:01:08]} 22... Nd7 {[%clk 0:01:27.1]} 23. Ba5 {[%clk 0:00:47.1]} 23...
Qa7 {[%clk 0:01:18.6]} 24. Bb6 {[%clk 0:00:35.1]} 24... Qxb6 {[%clk 0:01:03.4]}
25. Qxd7+ {[%clk 0:00:34.3]} 1-0